{"text_format":"3","workbook":"xlsx","n_sheets":2,"sheets":["بيانات النمو","مخطط النمو"],"not_rendered":{"charts":1,"defined_names":3},"read":"whole","date_system":"1900"}

{"sheet":"بيانات النمو","index":0,"n_rows":23,"n_cols":8,"rows_kept":23,"merged":[[0,1,0,7],[1,2,1,7]]}
[null,"نمو الطفل "]
[null,"اسم الطفل:","الاسم"]
[null,"العمر","الرطل","الأونصات","الوزن (رطل)","الوزن\nالنسبة المئوية","الطول (بوصة)","الطول\nالنسبة المئوية"]
[null,"عند الولادة",7,null,{"$f":"IF(COUNT(البيانات[[#This Row],[الرطل]:[الأونصات]])>0,البيانات[[#This Row],[الرطل]]+(البيانات[[#This Row],[الأونصات]]/16),NA())","v":7},40,19.5,70]
[null,"4 أيام",6,8,{"$f":"IF(COUNT(البيانات[[#This Row],[الرطل]:[الأونصات]])>0,البيانات[[#This Row],[الرطل]]+(البيانات[[#This Row],[الأونصات]]/16),NA())","v":6.5},41,19.5,70]
[null,"7 أيام",6,4.8,{"$f":"IF(COUNT(البيانات[[#This Row],[الرطل]:[الأونصات]])>0,البيانات[[#This Row],[الرطل]]+(البيانات[[#This Row],[الأونصات]]/16),NA())","v":6.3},42,20,71]
[null,"11 يوماً",6,9.6,{"$f":"IF(COUNT(البيانات[[#This Row],[الرطل]:[الأونصات]])>0,البيانات[[#This Row],[الرطل]]+(البيانات[[#This Row],[الأونصات]]/16),NA())","v":6.6},43,20,71]
[null,"14 يوماً",7,null,{"$f":"IF(COUNT(البيانات[[#This Row],[الرطل]:[الأونصات]])>0,البيانات[[#This Row],[الرطل]]+(البيانات[[#This Row],[الأونصات]]/16),NA())","v":7},44,20,71]
[null,"18 يوماً",7,12,{"$f":"IF(COUNT(البيانات[[#This Row],[الرطل]:[الأونصات]])>0,البيانات[[#This Row],[الرطل]]+(البيانات[[#This Row],[الأونصات]]/16),NA())","v":7.75},45,21,72]
[null,"21 يوماً",8,8,{"$f":"IF(COUNT(البيانات[[#This Row],[الرطل]:[الأونصات]])>0,البيانات[[#This Row],[الرطل]]+(البيانات[[#This Row],[الأونصات]]/16),NA())","v":8.5},46,21,72]
[null,"25 يوماً",null,null,{"$f":"IF(COUNT(البيانات[[#This Row],[الرطل]:[الأونصات]])>0,البيانات[[#This Row],[الرطل]]+(البيانات[[#This Row],[الأونصات]]/16),NA())","v":{"$error":"#N/A"}}]
[null,"28 يوماً",null,null,{"$f":"IF(COUNT(البيانات[[#This Row],[الرطل]:[الأونصات]])>0,البيانات[[#This Row],[الرطل]]+(البيانات[[#This Row],[الأونصات]]/16),NA())","v":{"$error":"#N/A"}}]
[null,"5 أسابيع",null,null,{"$f":"IF(COUNT(البيانات[[#This Row],[الرطل]:[الأونصات]])>0,البيانات[[#This Row],[الرطل]]+(البيانات[[#This Row],[الأونصات]]/16),NA())","v":{"$error":"#N/A"}}]
[null,"6 أسابيع",null,null,{"$f":"IF(COUNT(البيانات[[#This Row],[الرطل]:[الأونصات]])>0,البيانات[[#This Row],[الرطل]]+(البيانات[[#This Row],[الأونصات]]/16),NA())","v":{"$error":"#N/A"}}]
[null,"7 أسابيع",null,null,{"$f":"IF(COUNT(البيانات[[#This Row],[الرطل]:[الأونصات]])>0,البيانات[[#This Row],[الرطل]]+(البيانات[[#This Row],[الأونصات]]/16),NA())","v":{"$error":"#N/A"}}]
[null,"شهرين",null,null,{"$f":"IF(COUNT(البيانات[[#This Row],[الرطل]:[الأونصات]])>0,البيانات[[#This Row],[الرطل]]+(البيانات[[#This Row],[الأونصات]]/16),NA())","v":{"$error":"#N/A"}}]
[null,"3 أشهر",null,null,{"$f":"IF(COUNT(البيانات[[#This Row],[الرطل]:[الأونصات]])>0,البيانات[[#This Row],[الرطل]]+(البيانات[[#This Row],[الأونصات]]/16),NA())","v":{"$error":"#N/A"}}]
[null,"6 أشهر",null,null,{"$f":"IF(COUNT(البيانات[[#This Row],[الرطل]:[الأونصات]])>0,البيانات[[#This Row],[الرطل]]+(البيانات[[#This Row],[الأونصات]]/16),NA())","v":{"$error":"#N/A"}}]
[null,"9 أشهر",null,null,{"$f":"IF(COUNT(البيانات[[#This Row],[الرطل]:[الأونصات]])>0,البيانات[[#This Row],[الرطل]]+(البيانات[[#This Row],[الأونصات]]/16),NA())","v":{"$error":"#N/A"}}]
[null,"12 شهراً",null,null,{"$f":"IF(COUNT(البيانات[[#This Row],[الرطل]:[الأونصات]])>0,البيانات[[#This Row],[الرطل]]+(البيانات[[#This Row],[الأونصات]]/16),NA())","v":{"$error":"#N/A"}}]
[null,"18 شهراً",null,null,{"$f":"IF(COUNT(البيانات[[#This Row],[الرطل]:[الأونصات]])>0,البيانات[[#This Row],[الرطل]]+(البيانات[[#This Row],[الأونصات]]/16),NA())","v":{"$error":"#N/A"}}]
[null,"24 شهراً",null,null,{"$f":"IF(COUNT(البيانات[[#This Row],[الرطل]:[الأونصات]])>0,البيانات[[#This Row],[الرطل]]+(البيانات[[#This Row],[الأونصات]]/16),NA())","v":{"$error":"#N/A"}}]
[null,"36 شهراً",null,null,{"$f":"IF(COUNT(البيانات[[#This Row],[الرطل]:[الأونصات]])>0,البيانات[[#This Row],[الرطل]]+(البيانات[[#This Row],[الأونصات]]/16),NA())","v":{"$error":"#N/A"}}]

{"sheet":"مخطط النمو","index":1,"n_rows":1,"n_cols":2,"rows_kept":1,"merged":[[0,1,1,1]]}
[null,"مخطط نمو الطفل"]